[Event "World Junior U20 Girls 2018"]
[Site "Gebze"]
[Date "2018.09.13"]
[Round "9"]
[White "Ghukasyan, Siranush"]
[Black "Gomez Barrera, Javiera Belen"]
[Result "1/2-1/2"]
[ECO "C84"]
[WhiteElo "2205"]
[BlackElo "2035"]
[Annotator "NA"]
[PlyCount "97"]
[EventDate "2018.09.05"]
[EventType "swiss"]
[EventCountry "TUR"]
[SourceTitle "playchess.com"]
[Source "ChessBase"]
[SourceQuality "1"]
[TimeControl "40/5400+30:1800+30"]

1. e4 {[%emt 0:00:30]} e5 {[%emt 0:00:30]} 2. Nf3 {[%emt 0:00:30]} Nc6 {[%emt 0:00:30]} 3. Bb5 {[%emt 0:00:30]} a6 {[%emt 0:00:00]} 4. Ba4 {[%emt 0:00:00]} Nf6 {[%emt 0:00:00]} 5. d4 {[%emt 0:00:00]} exd4 {[%emt 0:20:30]} 6. O-O {[%emt 0:00:00]} Be7 {[%emt 0:09:30]} 7. e5 {[%emt 0:03:00]} Ne4 {[%emt 0:06:30]} 8. Nxd4 {[%emt 0:00:30]} Nxd4 {[%emt 0:06:30]} 9. Qxd4 {[%emt 0:00:30]} Nc5 {[%emt 0:00:30]} 10. Nc3 {[%emt 0:02:30]} Nxa4 {[%emt 0:02:30] LiveBook: 12 Games} 11. Nxa4 {[%emt 0:04:30]} O-O {[%emt 0:00:30]} 12. Bf4 {[%emt 0:00:30]} b5 {[%emt 0:12:30]} 13. Nc3 {[%emt 0:01:30]} Bb7 {[%emt 0:00:30] C84: Closed Ruy Lopez: Unusual White 6th moves} 14. Rad1 {[%emt 0:00:30]} Bc6 {[%emt 0:00:30]} 15. Nd5 {[%emt 0:00:30]} Re8 {[%emt 0:08:30] [#]} 16. Rfe1 $146 {[%emt 0:00:30]} ({Predecessor:} 16. Rd3 Bf8 17. Bg3 Qc8 18. Nf6+ gxf6 19. Bh4 Re6 20. Rg3+ Kh8 21. Qg4 {1-0 (34) Marjanovic,S (2505)-Yilmaz,T (2375) Pucarevo 1987}) 16... Bxd5 {[%emt 0:13:30]} (16... Bf8 $14) 17. Qxd5 {[%emt 0:00:30]} d6 {[%emt 0:00:04] [#]} 18. exd6 {[%emt 0:01:30]} (18. e6 $1 $16 {[%cal Re6f7]} f6 19. h4) 18... Bxd6 {[%emt 0:03:20]} 19. Bxd6 {[%emt 0:01:30]} Qxd6 {[%emt 0:01:27]} 20. Qxa8 {[%emt 0:05:30]} Rxa8 {[%emt 0:00:40]} 21. Rxd6 {[%emt 0:00:30]} cxd6 {[%emt 0:00:00]} 22. Re7 {[%emt 0:01:30]} Rc8 {[%emt 0:02:20]} 23. Rb7 {[%emt 0:00:30]} Kf8 {[%emt 0:00:17]} 24. c3 {[%emt 0:00:30]} Rc6 {[%emt 0:03:37]} 25. Kf1 {[%emt 0:01:30]} g6 {[%emt 0:01:37]} 26. Ke2 {[%emt 0:00:30]} Kg7 {[%emt 0:00:30]} 27. Kd3 {[%emt 0:00:30]} Kf6 {[%emt 0:00:00]} 28. a4 {[%emt 0:05:30]} bxa4 {[%emt 0:01:21]} 29. Rb4 {[%emt 0:00:30]} a3 {[%emt 0:02:01]} 30. b3 {[%emt 0:02:30]} Rc5 {[%emt 0:01:20]} 31. Ra4 {[%emt 0:00:30]} Rd5+ {[%emt 0:00:10]} 32. Kc2 {[%emt 0:02:30]} Re5 {[%emt 0:01:18]} 33. Kd2 {[%emt 0:01:30]} Rd5+ {[%emt 0:00:30]} 34. Kc1 {[%emt 0:00:30]} Rc5 {[%emt 0:01:00]} 35. c4 {[%emt 0:02:30]} a5 {[%emt 0:01:58]} 36. Kd2 {[%emt 0:02:30]} d5 {[%emt 0:00:50]} 37. Kd3 {[%emt 0:01:30]} dxc4+ {[%emt 0:00:51]} 38. bxc4 {[%emt 0:00:30]} Ke5 {[%emt 0:00:21]} 39. Rxa3 {[%emt 0:00:30]} h5 {[%emt 0:00:24]} 40. Ra2 {[%emt 0:00:00]} Kd6 {[%emt 0:00:00]} 41. h4 $11 {[%emt 0:02:00]} Rf5 {[%emt 0:08:38]} 42. g3 {[%emt 0:01:30]} f6 {[%emt 0:04:49]} 43. f4 {[%emt 0:10:30]} Rc5 {[%emt 0:12:41]} 44. Kd4 {[%emt 0:00:30]} g5 {[%emt 0:01:33]} 45. Rb2 {[%emt 0:01:30]} gxh4 {[%emt 0:01:44]} 46. gxh4 {[%emt 0:00:30]} Rf5 {[%emt 0:02:17]} 47. Ke4 {[%emt 0:05:30]} Rc5 {[%emt 0:00:06]} 48. Kd4 {[%emt 0:03:30]} Rf5 {[%emt 0:00:11]} 49. Ke4 {[%emt 0:08:30]} 1/2-1/2

[Event "World Junior U20 Girls 2018"]
[Site "Gebze"]
[Date "2018.09.13"]
[Round "9"]
[White "Kubicka, Anna"]
[Black "Diakonova, Ekaterina"]
[Result "0-1"]
[ECO "B06"]
[WhiteElo "2204"]
[BlackElo "2243"]
[Annotator "NA"]
[PlyCount "118"]
[EventDate "2018.09.05"]
[EventType "swiss"]
[EventCountry "TUR"]
[SourceTitle "playchess.com"]
[Source "ChessBase"]
[SourceQuality "1"]
[TimeControl "40/5400+30:1800+30"]

1. e4 {[%emt 0:00:30]} g6 {[%emt 0:00:30]} 2. d4 {[%emt 0:00:30]} Bg7 {[%emt 0:00:00]} 3. Nc3 {[%emt 0:00:00]} c6 {[%emt 0:00:00]} 4. Bc4 {[%emt 0:00:00]} d5 {[%emt 0:00:30]} 5. exd5 {[%emt 0:01:30]} b5 {[%emt 0:00:00] B06: Modern Defence} 6. Bd3 {[%emt 0:07:30]} (6. Bb3 b4 7. Nce2 cxd5 8. a3 bxa3 9. Rxa3 Nf6 10. Nf3 O-O 11. O-O Nc6 12. Ne5 Bb7 13. Nd3 Ne4 14. c3 Na5 15. Bc2 Nc4 16. Ra2 e6 17. Ng3 Ned6 18. Re1 Bc6 19. Bf4 Re8 {½-½ (113) Korobov,A (2692)-Shtembuliak,E (2478) Rivne 2016}) 6... b4 {[%emt 0:01:00]} 7. Nce2 {[%emt 0:02:30]} Qxd5 {[%emt 0:00:30]} 8. Nf3 {[%emt 0:04:30]} Bg4 {[%emt 0:03:30]} 9. Nf4 {[%emt 0:00:30]} Qd8 $146 {[%emt 0:10:30]} ({Predecessor:} 9... Qa5 10. Be2 Nd7 11. O-O Rd8 12. h3 Bf5 13. Bd3 {0-1 (38) Quagliarella,S (1917)-Okhotnik,V (2447) Omegna 2009}) 10. h3 {[%emt 0:02:30]} (10. O-O $16) 10... Bxf3 $1 {[%emt 0:01:30]} 11. Qxf3 {[%emt 0:00:00]} Nf6 {[%emt 0:03:30]} 12. Be3 {[%emt 0:03:00]} Qa5 {[%emt 0:03:30]} 13. O-O {[%emt 0:02:30]} O-O {[%emt 0:01:30]} 14. a3 {[%emt 0:03:30]} Rd8 {[%emt 0:04:30]} 15. Rfb1 {[%emt 0:13:30]} Nd5 {[%emt 0:01:30]} 16. Nxd5 {[%emt 0:03:30]} cxd5 {[%emt 0:00:30]} 17. axb4 {[%emt 0:02:30]} Qxb4 {[%emt 0:00:30]} 18. c3 {[%emt 0:00:30]} Qb6 {[%emt 0:03:30]} 19. Qe2 {[%emt 0:07:30]} Qc7 {[%emt 0:11:30]} 20. Bg5 {[%emt 0:04:30]} Re8 {[%emt 0:05:30]} 21. Bb5 {[%emt 0:07:30]} Nd7 {[%emt 0:01:30]} 22. Qf3 {[%emt 0:07:30]} e6 {[%emt 0:03:30]} 23. Ra6 {[%emt 0:02:30]} Qb7 {[%emt 0:02:30]} 24. Qd3 {[%emt 0:00:30]} Rab8 {[%emt 0:00:30]} 25. Bc6 {[%emt 0:01:30]} Qc7 {[%emt 0:02:30]} 26. Qg3 {[%emt 0:04:59]} Qc8 {[%emt 0:02:30]} 27. Rba1 {[%emt 0:02:49]} e5 {[%emt 0:08:30]} 28. Qg4 {[%emt 0:08:48]} Re6 {[%emt 0:00:00]} 29. Bxd7 {[%emt 0:00:04]} Qxd7 {[%emt 0:01:00]} 30. Rxa7 {[%emt 0:00:07]} Qe8 {[%emt 0:00:30]} 31. dxe5 {[%emt 0:01:32]} Bxe5 {[%emt 0:06:30] [#]} 32. R7a2 $1 {[%emt 0:03:16]} Bd6 {[%emt 0:06:36]} 33. Be3 {[%emt 0:01:34]} Re4 {[%emt 0:00:52]} 34. Qf3 {[%emt 0:00:32]} h5 {[%emt 0:04:18]} 35. Ra6 {[%emt 0:01:35]} Be5 {[%emt 0:03:24]} 36. Rb6 {[%emt 0:00:50]} h4 {[%emt 0:01:36]} 37. Rxb8 {[%emt 0:00:42]} Bxb8 {[%emt 0:00:24]} 38. Kf1 {[%emt 0:00:27]} Qb5+ {[%emt 0:00:53]} 39. Qe2 {[%emt 0:00:13]} Qb7 {[%emt 0:00:08]} 40. b4 {[%emt 0:00:00]} Be5 {[%emt 0:00:00]} 41. Ra7 {[%emt 0:16:53]} Qc6 {[%emt 0:09:49]} 42. Qf3 {[%emt 0:00:12]} f5 {[%emt 0:01:30]} 43. Qe2 {[%emt 0:06:51]} f4 {[%emt 0:10:16]} 44. Ra6 {[%emt 0:02:01]} Qxc3 {[%emt 0:00:58]} 45. Rxg6+ {[%emt 0:01:17]} Bg7 {[%emt 0:05:01]} 46. Qb5 {[%emt 0:04:37]} Qa1+ {[%emt 0:01:25]} 47. Ke2 {[%emt 0:00:30]} Qa2+ {[%emt 0:00:00]} 48. Kf3 {[%emt 0:00:03]} fxe3 {[%emt 0:00:00]} 49. fxe3 {[%emt 0:00:40]} Re7 {[%emt 0:05:00]} 50. Rg4 {[%emt 0:01:36]} Qa8 {[%emt 0:03:55]} 51. Rxh4 {[%emt 0:02:17]} d4+ {[%emt 0:00:01]} 52. e4 {[%emt 0:00:00]} Qa3+ {[%emt 0:00:42]} 53. Ke2 {[%emt 0:00:46]} Qe3+ {[%emt 0:01:03]} 54. Kd1 {[%emt 0:00:37]} Qg1+ {[%emt 0:00:07]} 55. Ke2 {[%emt 0:00:38]} Qxg2+ {[%emt 0:00:02]} 56. Kd1 {[%emt 0:00:00]} Qg1+ {[%emt 0:01:07]} 57. Ke2 {[%emt 0:00:01]} Qe3+ {[%emt 0:02:21]} 58. Kd1 $19 {[%emt 0:00:30]} Qb3+ {[%emt 0:00:00]} 59. Ke1 {[%emt 0:01:01]} Qg3+ {[%emt 0:00:00]} 0-1

[Event "World Junior U20 Girls 2018"]
[Site "Gebze"]
[Date "2018.09.13"]
[Round "9"]
[White "Hilario, Aleyla"]
[Black "Zairbek kyzy, Begimay"]
[Result "1-0"]
[ECO "E08"]
[WhiteElo "2203"]
[BlackElo "1770"]
[Annotator "NA"]
[PlyCount "81"]
[EventDate "2018.09.05"]
[EventType "swiss"]
[EventCountry "TUR"]
[SourceTitle "playchess.com"]
[Source "ChessBase"]
[SourceQuality "1"]
[TimeControl "40/5400+30:1800+30"]

1. d4 {[%emt 0:00:30]} d5 {[%emt 0:00:30]} 2. c4 {[%emt 0:00:30]} e6 {[%emt 0:00:30]} 3. Nf3 {[%emt 0:00:30]} Nf6 {[%emt 0:00:00]} 4. g3 {[%emt 0:00:00]} Be7 {[%emt 0:00:00]} 5. Bg2 {[%emt 0:00:00]} Nbd7 {[%emt 0:00:30]} 6. O-O {[%emt 0:00:30]} O-O {[%emt 0:01:30]} 7. Qc2 {[%emt 0:02:30]} b6 {[%emt 0:01:30]} 8. Nc3 {[%emt 0:03:30] E08: Closed Catalan: Main Line: 7 Qc2} Bb7 {[%emt 0:00:30]} 9. Rd1 {[%emt 0:03:30]} Rc8 {[%emt 0:00:00]} 10. cxd5 {[%emt 0:05:30]} exd5 {[%emt 0:01:00]} 11. Nb5 {[%emt 0:07:30] LiveBook: 3 Games} (11. Bf4 a6 12. Bh3 Re8 13. Ne5 Ra8 14. Rac1 h6 15. Na4 c5 16. Nxd7 Nxd7 17. Bxd7 Qxd7 18. Nxb6 {1-0 (46) Vallejo Pons,F (2711)-Montilla Carrillo,E (2177) Tallinn 2016}) 11... a6 {[%emt 0:25:30] [#]} 12. Na7 $1 {[%emt 0:00:30]} Ra8 {[%emt 0:00:30]} 13. Nc6 {[%emt 0:00:30]} Bxc6 {[%emt 0:00:30]} 14. Qxc6 {[%emt 0:00:00]} Rc8 $146 {[%emt 0:00:30]} ({Predecessor:} 14... Bd6 15. Bf4 Qe7 16. e3 h6 17. Rac1 g5 18. Bxd6 cxd6 {1-0 (32) Usmanov,V (2428)-Egorov,D (2343) Vladivostok 2014}) 15. Bh3 {[%emt 0:00:00]} Bd6 {[%emt 0:04:30]} 16. Bg5 {[%emt 0:00:30]} Qe8 {[%emt 0:05:30]} 17. Rac1 {[%emt 0:06:30]} Ra8 {[%emt 0:05:30]} 18. Nh4 {[%emt 0:03:30]} h6 {[%emt 0:03:30]} 19. Be3 {[%emt 0:00:30]} Rd8 {[%emt 0:03:30]} 20. Nf5 {[%emt 0:01:30]} Nb8 {[%emt 0:00:30]} 21. Qxe8 {[%emt 0:04:30]} Nxe8 {[%emt 0:01:30]} 22. Nxd6 {[%emt 0:00:30]} cxd6 {[%emt 0:05:30]} (22... Rxd6 $142 23. Bf4 Rc6) 23. Rc8 {[%emt 0:02:30]} Rxc8 {[%emt 0:00:30]} 24. Bxc8 {[%emt 0:00:30]} Nc7 {[%emt 0:02:30]} 25. Bb7 {[%emt 0:00:30]} Ne6 {[%emt 0:03:30]} 26. Rc1 {[%emt 0:00:30]} Rd8 {[%emt 0:02:30]} 27. Bxd5 {[%emt 0:02:30]} Kf8 {[%emt 0:02:30]} 28. f4 {[%emt 0:00:30]} Ke7 {[%emt 0:02:30]} 29. f5 {[%emt 0:00:30]} Ng5 {[%emt 0:04:30]} 30. Bxg5+ {[%emt 0:01:30]} hxg5 {[%emt 0:00:30]} 31. Rc7+ {[%emt 0:00:00]} Rd7 {[%emt 0:04:30]} 32. Rc8 {[%emt 0:00:00]} Rd8 {[%emt 0:00:17]} 33. Rxd8 {[%emt 0:00:30]} Kxd8 {[%emt 0:00:30]} 34. Bxf7 {[%emt 0:00:00]} Nc6 {[%emt 0:00:33]} 35. e3 {[%emt 0:00:00]} Ke7 {[%emt 0:00:40]} 36. Bb3 {[%emt 0:00:30]} Nb4 {[%emt 0:00:32]} 37. Kf2 {[%emt 0:01:30]} b5 {[%emt 0:03:19]} 38. Ke2 {[%emt 0:00:30]} a5 {[%emt 0:00:55]} 39. a3 {[%emt 0:00:30]} Nc6 {[%emt 0:00:52]} 40. Bd5 {[%emt 0:00:00]} Na7 {[%emt 0:00:00]} 41. b4 $18 {[%emt 0:02:00]} 1-0

[Event "World Junior U20 Girls 2018"]
[Site "Gebze"]
[Date "2018.09.13"]
[Round "9"]
[White "Kanakova, Natalie"]
[Black "Mahalakshmi, M."]
[Result "1-0"]
[ECO "B13"]
[WhiteElo "2201"]
[BlackElo "2213"]
[Annotator "ChessBase"]
[PlyCount "159"]
[EventDate "2018.09.05"]
[EventType "swiss"]
[EventCountry "TUR"]
[SourceTitle "playchess.com"]
[Source "ChessBase"]
[SourceQuality "1"]
[TimeControl "40/5400+30:1800+30"]

1. e4 {[%emt 0:00:30]} c6 {[%emt 0:00:30]} 2. d4 {[%emt 0:00:30]} d5 {[%emt 0:00:30]} 3. exd5 {[%emt 0:00:00]} cxd5 {[%emt 0:00:00]} 4. Bd3 {[%emt 0:00:00]} Nc6 {[%emt 0:00:00]} 5. c3 {[%emt 0:00:00]} Nf6 {[%emt 0:03:30]} 6. h3 {[%emt 0:01:00]} g6 {[%emt 0:01:30]} 7. Nf3 {[%emt 0:00:30]} Qc7 {[%emt 0:03:30]} 8. O-O {[%emt 0:01:30]} Bg7 {[%emt 0:00:30]} 9. Nbd2 {[%emt 0:02:30]} O-O {[%emt 0:00:30]} 10. Re1 {[%emt 0:01:30]} Re8 {[%emt 0:02:30]} 11. Nf1 {[%emt 0:01:30]} Bd7 {[%emt 0:01:30]} 12. Ng3 {[%emt 0:07:30]} Rad8 {[%emt 0:04:30]} 13. Bg5 {[%emt 0:07:30]} Na5 {[%emt 0:06:30]} 14. Qc1 {[%emt 0:04:30]} b5 {[%emt 0:03:30]} 15. Bh6 {[%emt 0:05:30]} Nc4 {[%emt 0:03:30]} 16. Bxg7 {[%emt 0:16:30]} Kxg7 {[%emt 0:00:30]} 17. Nh4 {[%emt 0:06:30]} h6 {[%emt 0:07:30]} 18. Qc2 {[%emt 0:03:30]} Qf4 {[%emt 0:03:30]} 19. Nxg6 {[%emt 0:03:30]} fxg6 {[%emt 0:01:30]} 20. Bxg6 {[%emt 0:00:00]} Qd2 {[%emt 0:05:30]} 21. Qxd2 {[%emt 0:02:00]} Nxd2 {[%emt 0:00:30]} 22. Bxe8 {[%emt 0:00:30]} Rxe8 {[%emt 0:00:00]} 23. Re2 {[%emt 0:00:30]} Nc4 {[%emt 0:01:00]} 24. Rae1 {[%emt 0:02:30]} Kf7 {[%emt 0:00:00]} 25. b3 {[%emt 0:02:30]} Nd6 {[%emt 0:02:00]} 26. Re5 {[%emt 0:01:30]} e6 {[%emt 0:02:30]} 27. f3 {[%emt 0:02:30]} Rc8 {[%emt 0:04:30]} 28. Ne2 {[%emt 0:00:30]} Nf5 {[%emt 0:04:30]} 29. g4 {[%emt 0:02:30]} Nh4 {[%emt 0:01:30]} 30. Kf2 {[%emt 0:00:30]} Ng6 {[%emt 0:01:30]} 31. Re3 {[%emt 0:00:00]} h5 {[%emt 0:05:30]} 32. Nc1 {[%emt 0:11:56]} Ke7 {[%emt 0:05:30]} 33. Ne2 {[%emt 0:03:56]} h4 {[%emt 0:01:30]} 34. Rg1 {[%emt 0:01:20]} Rf8 {[%emt 0:02:30]} 35. Ke1 {[%emt 0:00:47]} Nh7 {[%emt 0:01:30]} 36. Kf2 {[%emt 0:04:07]} Ng5 {[%emt 0:02:30]} 37. Kg2 {[%emt 0:00:06]} Kd6 {[%emt 0:00:52]} 38. Rc1 {[%emt 0:01:29]} Bc8 {[%emt 0:04:59]} 39. Rf1 {[%emt 0:01:44]} b4 {[%emt 0:04:48]} 40. f4 {[%emt 0:00:00]} Ne4 {[%emt 0:00:00]} 41. c4 {[%emt 0:11:05]} dxc4 {[%emt 0:08:51]} 42. bxc4 {[%emt 0:03:30]} Bb7 {[%emt 0:01:30]} 43. Kg1 {[%emt 0:01:54]} Nd2 {[%emt 0:05:30]} 44. c5+ {[%emt 0:00:16]} Kd7 {[%emt 0:00:30]} 45. Rf2 {[%emt 0:07:48]} Ne7 {[%emt 0:03:30]} 46. Nc1 {[%emt 0:03:37]} Ne4 {[%emt 0:03:30]} 47. Rfe2 {[%emt 0:01:22]} Ng3 {[%emt 0:04:17]} 48. Re1 {[%emt 0:00:31]} Rxf4 {[%emt 0:09:38]} 49. Rxe6 {[%emt 0:00:42]} Nd5 {[%emt 0:00:07]} 50. Rd6+ {[%emt 0:03:58]} Kc7 {[%emt 0:00:26]} 51. Nb3 {[%emt 0:00:29]} Nc3 {[%emt 0:01:11]} 52. Rde6 {[%emt 0:02:47]} Be4 {[%emt 0:01:17]} 53. Nc1 {[%emt 0:00:38]} Bd5 {[%emt 0:01:22]} 54. Re7+ {[%emt 0:00:35]} Kc6 {[%emt 0:00:05]} 55. Rxa7 {[%emt 0:02:09]} Rxd4 {[%emt 0:00:33]} 56. Nb3 {[%emt 0:00:19]} Rf4 {[%emt 0:01:54]} 57. Rae7 {[%emt 0:00:32]} Be4 {[%emt 0:01:22]} 58. Re6+ {[%emt 0:00:24]} Kc7 {[%emt 0:02:01]} 59. Nd4 {[%emt 0:00:41]} Nxa2 {[%emt 0:01:35]} 60. Re7+ {[%emt 0:00:38]} Kc8 {[%emt 0:00:27]} 61. c6 {[%emt 0:00:29]} b3 {[%emt 0:01:33]} 62. Ne6 {[%emt 0:00:39]} Bxc6 {[%emt 0:01:02]} 63. Nxf4 {[%emt 0:00:30]} Nc3 {[%emt 0:00:00]} 64. Nd3 {[%emt 0:00:00]} Nce4 {[%emt 0:00:07]} 65. Nb4 {[%emt 0:00:54]} Bb7 {[%emt 0:00:57]} 66. Rb1 {[%emt 0:01:04]} Nd2 {[%emt 0:00:14]} 67. Rb2 {[%emt 0:00:01]} Nge4 {[%emt 0:00:17]} 68. Nd3 {[%emt 0:00:22]} Nf3+ {[%emt 0:00:47]} 69. Kg2 {[%emt 0:00:33]} Nd4 {[%emt 0:00:21]} 70. Kf1 {[%emt 0:00:55]} Ba6 {[%emt 0:00:06]} 71. Rxe4 {[%emt 0:00:07]} Bxd3+ {[%emt 0:00:02]} 72. Kf2 {[%emt 0:00:31]} Bxe4 {[%emt 0:00:30]} 73. Ke3 {[%emt 0:00:00]} Ne6 {[%emt 0:01:40]} 74. Kxe4 {[%emt 0:00:00]} Kd7 {[%emt 0:00:30]} 75. Ke5 {[%emt 0:00:20]} Nc5 {[%emt 0:00:30]} 76. Kd5 {[%emt 0:00:05]} Nd3 {[%emt 0:00:43]} 77. Rxb3 {[%emt 0:00:05]} Nf2 {[%emt 0:00:13]} 78. Rf3 {[%emt 0:00:41]} Nh1 {[%emt 0:00:05]} 79. Ke5 {[%emt 0:01:16]} Ke7 {[%emt 0:00:07]} 80. Kf5 {[%emt 0:00:00]} 1-0

[Event "World Junior U20 Girls 2018"]
[Site "Gebze"]
[Date "2018.09.13"]
[Round "9"]
[White "Georgescu, Lena"]
[Black "Ince, Safiye Oyku"]
[Result "1/2-1/2"]
[ECO "B46"]
[WhiteElo "2195"]
[BlackElo "1905"]
[Annotator "NA"]
[PlyCount "72"]
[EventDate "2018.09.05"]
[EventType "swiss"]
[EventCountry "TUR"]
[SourceTitle "playchess.com"]
[Source "ChessBase"]
[SourceQuality "1"]
[TimeControl "40/5400+30:1800+30"]

1. e4 {[%emt 0:00:30]} c5 {[%emt 0:00:30]} 2. Nf3 {[%emt 0:00:30]} e6 {[%emt 0:00:30]} 3. d4 {[%emt 0:00:30]} cxd4 {[%emt 0:00:30]} 4. Nxd4 {[%emt 0:00:00]} Nc6 {[%emt 0:00:00]} 5. Nc3 {[%emt 0:00:00]} Qc7 {[%emt 0:00:00]} 6. f4 {[%emt 0:00:00] LiveBook: 1341 Games} a6 {[%emt 0:00:00]} 7. Nxc6 {[%emt 0:00:00]} bxc6 {[%emt 0:00:00]} 8. Bd3 {[%emt 0:00:00]} d5 {[%emt 0:00:30]} 9. O-O {[%emt 0:00:00]} Nf6 {[%emt 0:00:30]} 10. Qe2 {[%emt 0:00:30]} Be7 {[%emt 0:03:30] B46: Sizilianisch (Paulsen/Taimanow-Variante)} 11. Bd2 {[%emt 0:01:30]} O-O {[%emt 0:06:30]} 12. Rae1 {[%emt 0:02:30]} Bb7 {[%emt 0:10:30]} (12... Re8 13. Kh1 Bf8 14. e5 Nd7 15. Na4 g6 16. c4 Nc5 17. Nxc5 Bxc5 18. Rc1 {1-0 (44) Sutovsky,E (2673)-Pichot,A (2552) Caleta 2018}) 13. e5 {[%emt 0:03:30]} Nd7 {[%emt 0:01:30]} 14. f5 {[%emt 0:00:00]} exf5 {[%emt 0:01:30]} 15. Bxf5 {[%emt 0:00:00]} Bc8 $146 {[%emt 0:09:30]} ({Vorgänger:} 15... Rae8 16. Kh1 Nc5 17. Qg4 Kh8 18. Rf3 Bc8 19. Rh3 Bxf5 20. Qxf5 {1-0 (111) Zinchenko,Y (2499)-Luzhinsky,V (2231) Alushta 2006}) 16. e6 {[%emt 0:21:30]} Bc5+ {[%emt 0:11:30]} 17. Kh1 {[%emt 0:01:30]} fxe6 {[%emt 0:00:30]} 18. Bxe6+ {[%emt 0:18:30]} Kh8 {[%emt 0:00:00]} 19. Na4 {[%emt 0:11:30]} Bd6 {[%emt 0:00:00]} 20. c4 {[%emt 0:08:30]} dxc4 {[%emt 0:10:30]} 21. Bc3 {[%emt 0:02:30]} Nc5 $2 {[%emt 0:07:30]} (21... Nf6 $14) 22. Rxf8+ {[%emt 0:07:30]} Bxf8 {[%emt 0:00:30]} 23. Nxc5 {[%emt 0:00:30]} Bxc5 {[%emt 0:00:00]} 24. Bf5 {[%emt 0:08:02]} Qf7 {[%emt 0:08:00]} 25. Bc2 {[%emt 0:09:34]} Bd7 {[%emt 0:01:30]} 26. Qe4 {[%emt 0:01:21]} Qg8 {[%emt 0:00:30]} 27. Qh4 {[%emt 0:01:06]} Rf8 {[%emt 0:00:30]} 28. Qh5 {[%emt 0:01:13]} Bd6 {[%emt 0:02:30]} 29. h3 {[%emt 0:00:55]} Bg3 {[%emt 0:00:30]} 30. Rd1 {[%emt 0:00:49]} Be6 {[%emt 0:00:30]} 31. Kg1 $11 {[%emt 0:00:13]} Bd5 {[%emt 0:01:30]} 32. Qg4 {[%emt 0:00:37]} Bf2+ {[%emt 0:00:30]} 33. Kh2 {[%emt 0:00:18]} Bc5 {[%emt 0:01:30]} 34. Rd2 {[%emt 0:00:40]} Bd6+ {[%emt 0:01:30]} 35. Kg1 {[%emt 0:00:24]} Qf7 {[%emt 0:00:30]} 36. Bf5 {[%emt 0:00:21]} Re8 {[%emt 0:01:30]} 1/2-1/2

[Event "World Junior U20 Girls 2018"]
[Site "Gebze"]
[Date "2018.09.13"]
[Round "9"]
[White "Ivana Maria, Furtado"]
[Black "Hereklioglu, Sude"]
[Result "1-0"]
[ECO "B08"]
[WhiteElo "2144"]
[BlackElo "1930"]
[Annotator "NA"]
[PlyCount "45"]
[EventDate "2018.09.05"]
[EventType "swiss"]
[EventCountry "TUR"]
[SourceTitle "playchess.com"]
[Source "ChessBase"]
[SourceQuality "1"]
[TimeControl "40/5400+30:1800+30"]

1. d4 {[%emt 0:00:30]} g6 {[%emt 0:00:30]} 2. e4 {[%emt 0:02:30]} Bg7 {[%emt 0:00:30]} 3. Nf3 {[%emt 0:05:30]} d6 {[%emt 0:03:30]} 4. Nc3 {[%emt 0:05:30]} Nf6 {[%emt 0:00:30]} 5. Bg5 {[%emt 0:06:30]} Nc6 {[%emt 0:04:30]} 6. h3 {[%emt 0:09:30] LiveBook: 21 Games} h6 {[%emt 0:06:30]} 7. Be3 {[%emt 0:00:30]} Nd7 {[%emt 0:03:30]} 8. Qd2 {[%emt 0:03:30]} e5 {[%emt 0:01:30]} 9. O-O-O {[%emt 0:03:30]} a6 {[%emt 0:13:30]} 10. dxe5 {[%emt 0:00:30]} Ncxe5 {[%emt 0:01:30]} 11. Nxe5 {[%emt 0:02:30]} dxe5 {[%emt 0:05:30]} 12. f4 {[%emt 0:03:30]} exf4 $16 {[%emt 0:05:30]} 13. Bxf4 {[%emt 0:00:30]} c6 {[%emt 0:01:30]} 14. Bc4 {[%emt 0:10:30]} g5 {[%emt 0:14:30]} 15. Bd6 {[%emt 0:03:30]} Nb6 {[%emt 0:10:30]} 16. Bb3 {[%emt 0:04:30]} Be6 {[%emt 0:04:30]} 17. Bxe6 {[%emt 0:00:00]} fxe6 {[%emt 0:00:00]} 18. e5 {[%emt 0:02:00]} Nc4 {[%emt 0:02:44]} 19. Qd3 {[%emt 0:06:30]} Nxe5 {[%emt 0:00:56]} 20. Qe2 {[%emt 0:01:30]} Qa5 {[%emt 0:10:43]} 21. Rde1 {[%emt 0:05:30]} Nd7 {[%emt 0:02:42]} 22. Qxe6+ {[%emt 0:00:30]} Kd8 {[%emt 0:00:02]} 23. Qe7+ {[%emt 0:00:30]} 1-0

[Event "World Junior U20 Girls 2018"]
[Site "Gebze"]
[Date "2018.09.13"]
[Round "9"]
[White "Urh, Zala"]
[Black "Isha Sharma"]
[Result "0-1"]
[ECO "E61"]
[WhiteElo "2128"]
[BlackElo "2012"]
[Annotator "NA"]
[PlyCount "74"]
[EventDate "2018.09.05"]
[EventType "swiss"]
[EventCountry "TUR"]
[SourceTitle "playchess.com"]
[Source "ChessBase"]
[SourceQuality "1"]
[TimeControl "40/5400+30:1800+30"]

1. d4 {[%emt 0:00:30]} d6 {[%emt 0:00:30]} 2. Nf3 {[%emt 0:00:00]} Nf6 {[%emt 0:00:30]} 3. c4 {[%emt 0:00:00]} g6 {[%emt 0:00:00]} 4. Nc3 {[%emt 0:00:30]} Bf5 {[%emt 0:00:00] LiveBook: 973 Games} 5. d5 {[%emt 0:00:30]} Bg7 {[%emt 0:00:00] E61: King's Indian: Early deviations for White, including Smyslov System} 6. Nd4 {[%emt 0:00:30]} Bd7 {[%emt 0:00:00]} (6... Bc8 7. e4 O-O 8. Be2 e6 9. O-O exd5 10. cxd5 Re8 11. f3 c5 12. Nc2 a6 13. a4 {1-0 (33) Le,Q (2737)-Mamedov,R (2709) Huaian 2017}) 7. e4 {[%emt 0:00:00]} O-O {[%emt 0:00:30]} 8. Be2 {[%emt 0:00:00]} e5 {[%emt 0:01:30]} 9. Nb3 {[%emt 0:00:00]} a5 {[%emt 0:00:30]} 10. Bg5 $146 {[%emt 0:00:00]} ({Predecessor:} 10. Be3 b6 11. g4 Ne8 12. h4 f5 13. gxf5 gxf5 {1-0 (40) Bai,J (2594)-Peng,X (2427) Tianjin 2018}) 10... b6 {[%emt 0:02:30]} 11. Qd2 {[%emt 0:06:30]} Na6 {[%emt 0:00:30]} 12. h4 {[%emt 0:01:30]} Qc8 {[%emt 0:06:30]} 13. h5 {[%emt 0:06:30]} a4 {[%emt 0:00:30]} 14. Nc1 {[%emt 0:01:30]} Nc5 {[%emt 0:00:30]} 15. Qe3 {[%emt 0:05:30]} (15. Bxf6 $11 Bxf6 16. Nd3 (16. hxg6 fxg6 17. Nd3 Qd8 $15)) 15... Nxh5 {[%emt 0:15:30]} 16. Bxh5 {[%emt 0:04:30]} gxh5 {[%emt 0:02:30]} 17. Nd3 {[%emt 0:09:30]} f5 {[%emt 0:05:30]} 18. O-O-O {[%emt 0:06:30]} Nxe4 {[%emt 0:06:30]} 19. Nxe4 {[%emt 0:04:30]} fxe4 {[%emt 0:00:30]} 20. Qxe4 {[%emt 0:00:30]} Bf5 {[%emt 0:00:30]} 21. Qh4 {[%emt 0:02:30]} Bg6 {[%emt 0:00:00]} 22. f3 {[%emt 0:03:30]} Qf5 $19 {[%emt 0:01:00]} 23. Rh3 {[%emt 0:14:30]} b5 {[%emt 0:03:30]} 24. Be3 {[%emt 0:03:30]} Bf6 {[%emt 0:01:30]} 25. g4 {[%emt 0:00:30]} hxg4 {[%emt 0:00:30]} 26. Qxg4 {[%emt 0:00:00]} Qxg4 {[%emt 0:00:30]} 27. fxg4 {[%emt 0:00:00]} bxc4 {[%emt 0:00:30]} 28. Nb4 {[%emt 0:00:30]} a3 {[%emt 0:00:00]} 29. g5 {[%emt 0:01:30]} Bg7 {[%emt 0:01:00]} 30. Nc6 {[%emt 0:00:30]} axb2+ {[%emt 0:00:30]} 31. Kxb2 {[%emt 0:00:00]} e4+ {[%emt 0:00:00]} 32. Kb1 {[%emt 0:03:00]} Rf3 {[%emt 0:00:00]} 33. Rdh1 {[%emt 0:00:30]} Kf7 {[%emt 0:00:30]} 34. Bd4 {[%emt 0:01:30]} e3+ {[%emt 0:02:30]} 35. Kc1 {[%emt 0:00:30]} Rf2 {[%emt 0:01:30]} 36. Bxe3 {[%emt 0:01:30]} Rc2+ {[%emt 0:00:30]} 37. Kd1 {[%emt 0:00:00]} Raxa2 {[%emt 0:00:30]} 0-1